Cogmind - Beta 13 @@@ ROGUE MODE // 2024.04.23 @ 03:31:07 Player: CatPlusPlus Result: Destroyed by Lightning with EMDS Performance ------------- Evolutions (4) 2000 Regions Visited (16) 3200 Robots Destroyed (170) 850 Value Destroyed (6462) 6462 Prototype IDs (57) 1140 Alien Tech Used (0) 0 Bonus (5098) 5098 TOTAL SCORE: 18750 Bonus ------- High Alert Combat Kills 63 Follower Combat Kills 949 Network Hubs Disabled 200 Aligned with FarCom 300 Destroyed Z-Imprinter 1000 Triggered Deep Caves Wall 500 Exposed GOLEM Chamber 500 Met Zhirov 300 Built Enhanced Grunts 300 A7 Reached Mainframe 300 Met R17 at Cetus 500 Read Decrypted Archives 300 Friendly Fire -114 Cogmind --------- Core Integrity 0/850 Matter 96/300 Energy 100/100 System Corruption 32% Temperature Cool (0) Movement Walking (410) Ox3 Location -6/Hub_04(d) Parts ------- > --- POWER (2) -------- (None) > --- PROPULSION (3) --- Zionite Composite Leg I Assembled Alloy Leg > --- UTILITY (7) ------ Huge Storage Unit > --- WEAPON (3) ------- Assembled Focal Cannon > --- INVENTORY (25) --- Quantum Reactor Centrium Heavy Treads Centrium Heavy Treads Zionite Biocell (600) Zionite Biocell (600) Experimental Sensor Array GOLEM Unit GOLEM Unit Zionite Phaser-S Neutron Cannon XL Autogun Array Heavy Missile Launcher Heavy Flail Peak State ------------ > --- POWER ------------ Assembled Flux Generator > --- PROPULSION ------- Enhanced Flexi-carbon Leg Assembled Alloy Leg Assembled Alloy Leg > --- UTILITY ---------- Assembled Nanovents Huge Storage Unit Assembled Biocell Array Centrium Medium Armor Plating Assembled Alloy Armor GOLEM Unit > --- WEAPON ----------- Assembled Focal Cannon Assembled Focal Cannon Assembled Focal Cannon > --- INVENTORY -------- Quantum Reactor Quantum Reactor Centrium Heavy Treads Centrium Heavy Treads Zionite Composite Leg I Zionite Biocell Zionite Biocell Experimental Sensor Array Zionite Weapon Casing Centrium Medium Armor Plating GOLEM Unit GOLEM Unit Zionite Phaser-S Neutron Cannon XL Autogun Array Heavy Missile Launcher Rocket Array Heavy Flail [Rating: 141] Favorites ----------- Power Heavy Ion Engine Engine Heavy Ion Engine Power Core Light Nuclear Core Reactor Assembled Flux Generator Propulsion Assembled Alloy Leg Treads Armored Treads Leg Assembled Alloy Leg Wheel Armored Huge Wheel Hover Unit Aerolev Unit Flight Unit Improved VTOL Module Utility Huge Storage Unit Device GOLEM Unit Storage Huge Storage Unit Processor Improved Signal Interpreter Protection Heavy Armor Plating Weapon Assembled Focal Cannon Energy Gun Advanced Beam Rifle Energy Cannon Assembled Focal Cannon Ballistic Gun Assault Rifle Ballistic Cannon Advanced Assault Cannon Launcher Rocket Array Special Weapon Mining Laser Impact Weapon Heavy Flail Special Melee Weapon Datajack Build | -11 -10 -10 -10 -9 -8 -7 -7 -7 -7 -7 -6 -6 -6 -6 -6 -6 ------- Run | Yrd Mat Min Exi Min Mat Fac Low Low Zio Dee Pro Fac Ext Cet Arc Hub Slots Evolved 8 | . . . . . 4 2 . . . . . 2 . . . . Power 1 | . . . . . . . . . . . . 1 . . . . Propulsion 1 | . . . . . 1 . . . . . . . . . . . Utility 5 | . . . . . 2 2 . . . . . 1 . . . . Weapon 1 | . . . . . 1 . . . . . . . . . . . Parts Attached 213 | 10 26 10 2 11 39 12 5 4 16 51 3 9 . 6 1 8 Power 16 | 1 1 3 . 1 4 . . . . 4 . 1 . . . 1 Engine 8 | 1 1 3 . 1 2 . . . . . . . . . . . Core 2 | . . . . . 2 . . . . . . . . . . . Reactor 6 | . . . . . . . . . . 4 . 1 . . . 1 Propulsion 28 | 2 1 2 . 2 8 . . 1 . 9 . . . 1 . 2 Treads 12 | 2 1 1 . 1 4 . . . . 3 . . . . . . Leg 7 | . . . . . . . . . . 4 . . . 1 . 2 Wheel 5 | . . 1 . 1 1 . . 1 . 1 . . . . . . Hover 3 | . . . . . 2 . . . . 1 . . . . . . Flight 1 | . . . . . 1 . . . . . . . . . . . Utility 86 | 2 3 4 1 3 6 7 3 2 7 31 3 7 . 3 1 3 Device 49 | 1 . 3 . . 5 5 2 2 7 15 3 3 . 2 . 1 Storage 6 | 1 2 . . . . 1 . . . 1 . 1 . . . . Processor 2 | . . . . . . 1 . . . . . 1 . . . . Hackware . | . . . . . . . . . . . . . . . . . Protection 29 | . 1 1 1 3 1 . 1 . . 15 . 2 . 1 1 2 Artifact . | . . . . . . . . . . . . . . . . . Weapon 83 | 5 21 1 1 5 21 5 2 1 9 7 . 1 . 2 . 2 Energy Gun 18 | 2 3 . . . 6 2 . . 3 2 . . . . . . Energy Cannon 3 | . . . . . . . . . . 2 . . . 1 . . Ballistic Gun 26 | 3 8 1 . 4 6 . . . 4 . . . . . . . Ballistic Cannon 2 | . . . . . 2 . . . . . . . . . . . Launcher 11 | . 2 . 1 1 . 1 1 . 1 2 . . . . . 2 Special Weapon 5 | . 4 . . . . . . . 1 . . . . . . . Impact Weapon 14 | . . . . . 7 2 1 1 . 1 . 1 . 1 . . Slashing Weapon . | . . . . . . . . . . . . . . . . . Piercing Weapon . | . . . . . . . . . . . . . . . . . Special Melee Weapon 4 | . 4 . . . . . . . . . . . . . . . Unidentified Prototypes 24 | . . . . . 7 . . . 3 12 . . . 2 . . Parts Lost 29 | . . 2 . . . . 1 . . 7 . . . . 3 16 Power 3 | . . 1 . . . . . . . . . . . . . 2 Propulsion 4 | . . 1 . . . . . . . . . . . . . 3 Utility 17 | . . . . . . . 1 . . 7 . . . . 2 7 Weapon 5 | . . . . . . . . . . . . . . . 1 4 Highest Loss Streak 7 | . . 2 . . . . 1 . . 3 . . . . 3 7 To Critical Strikes 1 | . . . . . . . . . . . . . . . . 1 Average Slot Usage (%) 88 | . 99 100 100 99 89 83 84 84 82 83 91 85 86 86 84 80 Engine 5 | . 13 14 14 14 5 7 7 7 7 . . . . . . . Reactor 2 | . . . . . . . . . . 6 7 6 6 6 6 5 Treads 8 | . 27 26 14 13 8 7 7 7 7 4 . . . . . . Leg 7 | . . . . . . . . . . 6 23 19 20 20 20 19 Wheel 4 | . . 1 14 14 9 7 7 7 7 5 . . . . . . Device 14 | . 14 7 13 . 17 15 15 15 16 15 14 14 20 20 18 11 Storage 10 | . 14 14 14 14 9 7 7 7 7 8 15 13 13 13 13 12 Processor 1 | . . . . . . 6 7 7 4 . . 2 . . . . Protection 7 | . . 6 . 14 9 7 7 7 7 12 7 8 6 6 6 11 Energy Gun 3 | . 3 . . . 5 1 7 7 7 4 . . . . . . Energy Cannon 7 | . . . . . . . . . . 11 22 19 20 18 18 17 Ballistic Gun 8 | . 23 28 27 27 13 7 7 7 7 1 . . . . . . Impact Weapon 2 | . . . . . 5 6 6 7 5 1 . . . 1 . . Naked Turns . | . . . . . . . . . . . . . . . . . Heaviest Build 186 | 13 51 50 51 57 76 118 118 114 128 145 146 184 181 181 180 186 Greatest Support 88 | 40 40 40 10 28 28 28 28 28 28 88 88 88 88 88 88 88 Greatest Overweight (x) 5 | 1 1 4 5 5 3 4 4 4 4 4 1 2 2 2 2 4 Average Overweight (x) 2 | . . 1 4 3 2 2 4 4 3 3 1 1 2 1 1 2 Largest Inventory Capacity 25 | 8 20 20 20 20 20 25 25 25 25 25 25 25 25 25 25 25 Average Capacity 22 | 7 17 20 20 20 20 22 25 25 25 25 25 25 25 25 25 25 Most Carried 25 | 7 20 20 20 20 20 25 25 25 25 25 25 25 25 25 25 25 Average Carried 22 | 4 14 19 19 19 19 21 24 25 24 24 24 24 24 24 24 24 Final Capacity 25 | 8 20 20 20 20 20 25 25 25 25 25 25 25 25 25 25 25 Final Carried 25 | 7 20 20 20 20 20 25 25 25 25 25 25 24 25 25 25 20 Class Distribution -------------------- 48% | Mutant 28% | Golem 13% | Tank 5% | Commander-Golem Dominant Class ---------------- Mutant | -10/Materials Mutant | -10/Mines Mutant | -10/Exiles Mutant | -9/Mines Mutant | -8/Materials Mutant | -7/Factory Mutant | -7/Lower Caves Mutant | -7/Lower Caves Mutant | -7/Zion Tank | -7/Deep Caves Golem | -6/Proximity Caves Golem | -6/Factory Golem | -6/Extension Commander-Golem | -6/Cetus Golem | -6/Archives Golem | -6/Hub_04(d) Resources | -11 -10 -10 -10 -9 -8 -7 -7 -7 -7 -7 -6 -6 -6 -6 -6 -6 ----------- Run | Yrd Mat Min Exi Min Mat Fac Low Low Zio Dee Pro Fac Ext Cet Arc Hub Matter Collected 4494 | 472 792 174 . 378 1042 212 136 189 168 676 65 100 20 60 . 10 Remotely . | . . . . . . . . . . . . . . . . . Salvage Created 7923 | 241 822 152 . 131 1365 136 240 262 . 1755 688 250 806 208 110 757 Parts 374 | 19 61 14 . 12 69 12 12 1 . 48 25 8 42 8 6 37 Haulers Intercepted 6 | . 2 . . . 4 . . . . . . . . . . . Recyclers Shooed 5 | 2 2 . . . 1 . . . . . . . . . . . Parts Field Recycled 5 | . . . . . . . . . 5 . . . . . . . Retrieved Matter 61 | . . . . . . . . . 61 . . . . . . . Parts Self-Destructed 38 | . . . . . . . 13 . . . 25 . . . . . Prevented . | . . . . . . . . . . . . . . . . . Kills | -11 -10 -10 -10 -9 -8 -7 -7 -7 -7 -7 -6 -6 -6 -6 -6 -6 ------- Run | Yrd Mat Min Exi Min Mat Fac Low Low Zio Dee Pro Fac Ext Cet Arc Hub Combat Hostiles Destroyed 158 | . 14 5 . 5 17 3 4 . . 54 15 2 11 3 2 23 Melee 1 | . . . . . . . . . . 1 . . . . . . Guns 50 | . 11 5 . 3 15 2 4 . . 10 . . . . . . Cannons 45 | . . . . . 2 1 . . . . 15 2 11 3 2 9 AOE 55 | . 3 . . 2 . . . . . 36 . . . . . 14 Classes Destroyed 23 | 3 6 . . 1 2 1 1 . . 4 2 . 1 . . 2 Worker 8 | 2 3 . . 1 2 . . . . . . . . . . . Builder 7 | . 1 . . . . 2 . . . . . 1 . . . 3 Tunneler 8 | 5 1 1 . . 1 . . . . . . . . . . . Hauler 6 | . 2 . . . 4 . . . . . . . . . . . Recycler 8 | 1 2 . . . 3 . . . . . . 1 1 . . . Mechanic 2 | . . . . . 2 . . . . . . . . . . . Operator 4 | . 3 . . . . . . . . . . . . . . 1 Drone 2 | . . . . . . . . . . . 2 . . . . . Watcher 11 | . 3 . . . 4 . . . . . . . 3 1 . . Swarmer 22 | . 6 3 . 3 . . . . . . 3 . 3 . . 4 Grunt 46 | . 8 2 . . 12 . 2 . . . 8 1 2 . 2 9 Brawler 2 | . . . . . 1 . . . . . 1 . . . . . Duelist 1 | . . . . . . . . . . . 1 . . . . . Protector 1 | . . . . . . . . . . . . . . . . 1 Sentry 14 | . . . . 2 4 1 1 . . . . . 4 . . 2 Hunter 2 | . . . . . . . . . . . . . . . . 2 Programmer 6 | . . . . . . 2 1 . . . . 1 . . . 2 Behemoth 2 | . . . . . . . . . . . . . 2 . . . Cetus Guard 3 | . . . . . . . . . . . . . . 3 . . Lightning 3 | . . . . . . . . . . . . . . . . 3 Z-Technician 1 | . . . . . . . . . . 1 . . . . . . Z-Light 7 | . . . . . . . . . . 7 . . . . . . Packrat 1 | . . . . . . . . 1 . . . . . . . . Samaritan 5 | . . . . . . . 1 4 . . . . . . . . Assembler 2 | . . . . . . . . . . 2 . . . . . . Assembled 38 | . . . . . . . . . . 38 . . . . . . Golem 8 | . . . . . . . . . . 8 . . . . . . Best Kill Streak 35 | 2 4 4 . 2 5 1 3 . . 35 4 1 3 2 2 12 Combat Bots Only 34 | . 3 3 . 2 3 1 3 . . 34 4 1 3 2 2 10 Max Kills in Single Turn 33 | 1 2 1 . 2 1 1 1 1 . 33 1 1 2 1 1 5 Gunslinging . | . . . . . . . . . . . . . . . . . Exploded 32 | . 1 . . 2 . . . . . 32 . . . . . 3 Melee 1 | . . . . . . . . . . 1 . . . . . . Uniques/NPCs Destroyed 1 | . . . . . . . . . . 1 . . . . . . Z-Imprinter (-7/Deep Caves) Combat | -11 -10 -10 -10 -9 -8 -7 -7 -7 -7 -7 -6 -6 -6 -6 -6 -6 -------- Run | Yrd Mat Min Exi Min Mat Fac Low Low Zio Dee Pro Fac Ext Cet Arc Hub Hostile Shots Fired 880 | . 42 48 . 24 52 43 37 . . 73 54 17 38 12 . 440 Missed 246 | . 10 6 . 7 14 13 14 . . 16 14 4 15 3 . 130 Damage Taken 11144 | . 384 465 . 233 434 249 477 . . 1828 720 256 190 180 844 4884 Core 1438 | . 49 78 . 55 26 15 23 . . 218 108 16 34 24 76 716 Absorbed by Shields 370 | . . . . . 166 . . . . . . . . 58 . 146 Redirected to Shielding 422 | . . . . . . . . . . 278 . . . . . 144 Ignored by Resistances 826 | . . . . . . . . . . 30 . 48 43 48 151 506 Regen/Repaired (Parts) 81 | . 81 . . . . . . . . . . . . . . . Core Remaining (%) 67 | 100 . . . 27 95 . . . . . 48 . . . . . Volleys Fired 564 | 38 87 19 . 19 68 13 15 . . 88 70 36 29 8 2 72 Largest 3 | 2 2 2 . 2 3 3 2 . . 2 3 3 3 3 2 3 Hottest 135 | 70 100 40 . 40 135 134 86 . . 126 75 75 75 75 50 75 Shots Fired 1033 | 57 161 38 . 35 188 29 29 1 . 139 116 46 63 21 4 106 Gun 596 | 57 150 38 . 32 173 19 29 1 . 97 . . . . . . Cannon 409 | . . . . . 15 10 . . . 36 116 46 63 21 4 98 Launcher 22 | . 5 . . 3 . . . . . 6 . . . . . 8 Special 6 | . 6 . . . . . . . . . . . . . . . Kinetic 423 | 34 96 38 . 32 132 23 14 . . 54 . . . . . . Thermal 510 | 23 60 . . . 56 6 15 1 . 1 116 46 63 21 4 98 Explosive 22 | . 5 . . 3 . . . . . 6 . . . . . 8 Electromagnetic 35 | . . . . . . . . . . 35 . . . . . . Phasic 43 | . . . . . . . . . . 43 . . . . . . Robot Hit Streak 39 | 6 14 10 . 11 8 11 12 . . 18 15 8 20 39 3 8 Robot Miss Streak 6 | 4 4 4 . 1 6 2 3 . . 3 3 1 1 . 1 2 Penetration Max . | . . . . . . . . . . . . . . . . . Secondary Targets 3 | . . 2 . . . . 1 . . . . . . . . . Max Gunslinging Chain 1 | . . 1 . . . . 1 . . . . . . . . . Autonomous 37 | . . . . . . . . . . 37 . . . . . . Shots Hit Robots 601 | 31 96 23 . 18 118 22 24 5 . 95 43 17 39 19 3 48 Core Hits 436 | 11 50 9 . 8 58 9 9 1 . 141 17 4 17 5 2 95 Critical Kills 2 | . . . . . 1 . . 1 . . . . . . . . Critical Parts Destroyed 3 | . 1 . . . 2 . . . . . . . . . . . Critical Strikes 19 | 1 1 . . . 8 2 3 1 . 3 . . . . . . Burn 7 | 1 . . . . 3 . 3 . . . . . . . . . Destroy 2 | . 1 . . . 1 . . . . . . . . . . . Blast 4 | . . . . . 2 2 . . . . . . . . . . Corrupt 1 | . . . . . . . . . . 1 . . . . . . Smash 3 | . . . . . 2 . . 1 . . . . . . . . Intensify 2 | . . . . . . . . . . 2 . . . . . . Melee Attacks 100 | . 3 . . . 41 19 6 9 1 12 . 6 . 3 . . Impact 97 | . . . . . 41 19 6 9 1 12 . 6 . 3 . . Slashing . | . . . . . . . . . . . . . . . . . Piercing . | . . . . . . . . . . . . . . . . . Sneak Attacks 16 | . 3 . . . 7 . 1 5 . . . . . . . . Combat Hostiles . | . . . . . . . . . . . . . . . . . Follow-up Attacks . | . . . . . . . . . . . . . . . . . Damage Inflicted 23237 | 348 1334 298 . 435 2634 538 629 459 . 5626 2053 886 2162 893 165 4777 Guns 6392 | 348 1172 298 . 223 1735 261 513 . . 1842 . . . . . . Cannons 9748 | . . . . . 248 277 . . . 685 2053 871 2162 893 165 2394 Explosions 5489 | . 159 . . 201 . . . . . 2746 . . . . . 2383 Melee 1575 | . . . . . 647 . 116 459 . 353 . . . . . . Ramming 33 | . 3 . . 11 4 . . . . . . 15 . . . . Kinetic 4664 | 223 673 298 . 223 1414 438 213 . . 1182 . . . . . . Thermal 10131 | 125 499 . . . 569 100 300 . . . 2053 871 2162 893 165 2394 Explosive 5489 | . 159 . . 201 . . . . . 2746 . . . . . 2383 Electromagnetic 685 | . . . . . . . . . . 685 . . . . . . Impact 1575 | . . . . . 647 . 116 459 . 353 . . . . . . Slashing . | . . . . . . . . . . . . . . . . . Piercing . | . . . . . . . . . . . . . . . . . Phasic 660 | . . . . . . . . . . 660 . . . . . . Highest Corruption 32 | . . . . . . . 1 1 1 3 3 . . . . 32 Average Corruption 2 | . . . . . . . 1 1 1 3 3 . . . . 6 Corruption Purged . | . . . . . . . . . . . . . . . . . Corruption Blocked . | . . . . . . . . . . . . . . . . . Effects 80 | . . . . . . . 4 8 1 22 26 . . . . 19 Message Errors 23 | . . . . . . . 1 2 . 7 6 . . . . 7 Matter Fused 18 | . . . . . . . 2 . 1 1 10 . . . . 4 Heat Flow Errors 10 | . . . . . . . . 3 . 3 4 . . . . . Energy Discharges 8 | . . . . . . . . 2 . 5 . . . . . 1 Parts Rejected 2 | . . . . . . . . . . . 1 . . . . 1 Data Loss (minor) 11 | . . . . . . . 1 . . 4 1 . . . . 5 Data Loss (major) 3 | . . . . . . . . . . 1 2 . . . . . Misfires 4 | . . . . . . . . 1 . 1 2 . . . . . Weapon Failures 1 | . . . . . . . . . . . . . . . . 1 Overload Shots . | . . . . . . . . . . . . . . . . . Overflow Damage 1421 | . . . . 22 285 . 76 351 . 117 157 30 202 . 8 173 Projectiles 577 | . . . . . 9 . . . . . 157 30 202 . 8 171 Explosions 74 | . . . . 22 . . . . . 50 . . . . . 2 Melee 770 | . . . . . 276 . 76 351 . 67 . . . . . . Knockbacks 8 | . . . . . 2 4 . . . 2 . . . . . . Impact 4 | . . . . . 2 . . . . 2 . . . . . . Kinetic 4 | . . . . . . 4 . . . . . . . . . . Secondary . | . . . . . . . . . . . . . . . . . Self-Inflicted Damage 408 | . 24 . . . 1 . . . . 149 . . . . . 234 Shots 18 | . 1 . . . . . . . . 5 . . . . . 12 Rammed 6 | . 2 . . 2 2 . . . . . . . . . . . Targets Rammed 9 | . 2 . . 3 2 . . . . . . 2 . . . . Kicked 2 | . . . . . . . . . . . . 2 . . . . Crushed 1 | . . . . 1 . . . . . . . . . . . . Highest Temperature 426 | 100 119 37 . 5 218 68 21 229 . 426 309 16 36 6 . 12 Average Temperature 42 | 29 30 15 . 3 26 21 6 96 . 92 81 11 10 4 . 5 Received Heat Transfer 2542 | . 180 192 . 72 237 54 153 . . 451 363 81 60 9 . 690 Effects 3 | . . . . . . . . . . 3 . . . . . . Interference 2 | . . . . . . . . . . 2 . . . . . . Damage (minor) 1 | . . . . . . . . . . 1 . . . . . . Siege Activations . | . . . . . . . . . . . . . . . . . Robots Corrupted 6 | . . . . . . . . . . 6 . . . . . . Combat Hostiles 6 | . . . . . . . . . . 6 . . . . . . Parts Fried 5 | . . . . . 3 . . 2 . . . . . . . . Impact Corruptions 33 | . . . . . 8 . 13 8 . 4 . . . . . . Robots Melted . | . . . . . . . . . . . . . . . . . Combat Hostiles . | . . . . . . . . . . . . . . . . . Parts Melted 15 | . 4 . . . 3 . . . . . 1 . 2 2 . 3 Heat Transferred 8318 | 444 1480 . . . 1517 148 740 . . . 1100 450 925 400 75 1039 Parts Sabotaged . | . . . . . . . . . . . . . . . . . Parts Stolen . | . . . . . . . . . . . . . . . . . Parts Stripped . | . . . . . . . . . . . . . . . . . Power Chain Reactions . | . . . . . . . . . . . . . . . . . Alert | -11 -10 -10 -10 -9 -8 -7 -7 -7 -7 -7 -6 -6 -6 -6 -6 -6 ------- Run | Yrd Mat Min Exi Min Mat Fac Low Low Zio Dee Pro Fac Ext Cet Arc Hub Peak Influence 758 | 40 387 129 . 114 297 138 . . . . . 758 252 136 166 533 Initial 750 | . 26 9 . . 24 92 . . . . . 750 71 114 53 . Average 133 | 16 140 21 . 22 172 55 . . . . . 395 85 121 84 130 Maximum Alert Level 3 | . 1 . . . 1 . . . . . . 3 1 . . 2 Low Security (%) 78 | 100 77 100 . 100 55 100 . . . . . 27 93 100 100 72 Level 1 16 | . 22 . . . 44 . . . . . . 21 6 . . 21 Level 2 2 | . . . . . . . . . . . . 25 . . . 6 Level 3 2 | . . . . . . . . . . . . 25 . . . . Level 4 . | . . . . . . . . . . . . . . . . . Level 5 . | . . . . . . . . . . . . . . . . . High Security . | . . . . . . . . . . . . . . . . . Max Security . | . . . . . . . . . . . . . . . . . Squads Dispatched 23 | . 4 . . 1 4 2 . . . . . 2 2 . . 8 Investigation 9 | . 2 . . 1 1 . . . . . . . 2 . . 3 Extermination 5 | . . . . . . 2 . . . . . 1 . . . 2 Reinforcement 6 | . 2 . . . 1 . . . . . . 1 . . . 2 Assault 1 | . . . . . . . . . . . . . . . . 1 Garrison 2 | . . . . . 2 . . . . . . . . . . . Intercept . | . . . . . . . . . . . . . . . . . Searches Triggered 2 | . . . . . . . . . . . . 2 . . . . Construction Impeded 1 | . . . . . . . . . . . . 1 . . . . Haulers Reinforced 1 | . . . . . . . . . . . . . . . . 1 Active Scanning Responses . | . . . . . . . . . . . . . . . . . Cargo Convoy Interrupts . | . . . . . . . . . . . . . . . . . Stealth | -11 -10 -10 -10 -9 -8 -7 -7 -7 -7 -7 -6 -6 -6 -6 -6 -6 --------- Run | Yrd Mat Min Exi Min Mat Fac Low Low Zio Dee Pro Fac Ext Cet Arc Hub Distress Signals 11 | . 2 . . . 4 . . . . . 1 . . 2 . 2 Communications Jammed . | . . . . . . . . . . . . . . . . . Distress Signals . | . . . . . . . . . . . . . . . . . Times Spotted 249 | . 29 7 . 6 40 3 6 . . 62 17 7 21 11 10 30 Peak Tracking Total 37 | . 4 10 . 3 3 1 5 . . 37 3 5 3 5 7 7 Tactical Retreats 13 | . 3 . . 1 2 . 1 . . . . 2 1 . . 3 Traps | -11 -10 -10 -10 -9 -8 -7 -7 -7 -7 -7 -6 -6 -6 -6 -6 -6 ------- Run | Yrd Mat Min Exi Min Mat Fac Low Low Zio Dee Pro Fac Ext Cet Arc Hub Traps Triggered 2 | . . . . . . . . . . . . . 2 . . . Indirectly . | . . . . . . . . . . . . . . . . . Trap Hack Attempts . | . . . . . . . . . . . . . . . . . Triggered . | . . . . . . . . . . . . . . . . . Disarmed . | . . . . . . . . . . . . . . . . . Reprogrammed . | . . . . . . . . . . . . . . . . . Reused . | . . . . . . . . . . . . . . . . . Traps Extracted . | . . . . . . . . . . . . . . . . . Installed . | . . . . . . . . . . . . . . . . . Triggered . | . . . . . . . . . . . . . . . . . Machines | -11 -10 -10 -10 -9 -8 -7 -7 -7 -7 -7 -6 -6 -6 -6 -6 -6 ---------- Run | Yrd Mat Min Exi Min Mat Fac Low Low Zio Dee Pro Fac Ext Cet Arc Hub Machines Disabled 18 | . 1 1 . 2 4 . 1 . . 1 . 1 1 1 1 4 Max in Single Turn 1 | . 1 1 . 1 1 . 1 . . 1 . 1 1 1 . 1 Garrison Access 1 | . . . . . . 1 . . . . . . . . . . Network Hub 1 | . . . . . . . . . . . . . . . . 1 Machines Repaired . | . . . . . . . . . . . . . . . . . Machines Dismantled 3 | . . . . . . . . . 3 . . . . . . . Machines Sabotaged 1 | . . . . . . . . . . . . . . . . 1 Overloaded Fab Kills . | . . . . . . . . . . . . . . . . . Hacking | -11 -10 -10 -10 -9 -8 -7 -7 -7 -7 -7 -6 -6 -6 -6 -6 -6 --------- Run | Yrd Mat Min Exi Min Mat Fac Low Low Zio Dee Pro Fac Ext Cet Arc Hub Machines Accessed 50 | . 8 . 2 1 6 5 3 2 . . . 4 12 1 1 5 Terminals 29 | . 5 . . . 5 . . . . . . 1 12 1 . 5 Fabricators 2 | . . . . . . 2 . . . . . . . . . . Repair Stations 1 | . 1 . . . . . . . . . . . . . . . Recycling Units 6 | . 2 . . . . 1 . . . . . 3 . . . . Scanalyzers 1 | . . . . . . 1 . . . . . . . . . . Garrison Access 2 | . . . . . 1 1 . . . . . . . . . . Total Hacks 127 | . 16 . 5 1 14 13 8 9 . . . 5 23 1 25 7 Successful 82 | . 8 . 5 1 4 3 8 9 . . . 3 11 . 25 5 Failed 45 | . 8 . . . 10 10 . . . . . 2 12 1 . 2 Catastrophic 10 | . 2 . . . 2 2 . . . . . . 3 1 . . Database Lockouts . | . . . . . . . . . . . . . . . . . Manual 27 | . 7 . 1 . 7 . . . 1 . . . 5 1 . 5 Terminals 54 | . 8 . . . 13 . . . . . . 2 23 1 . 7 Fabricators 5 | . . . . . . 5 . . . . . . . . . . Repair Stations 2 | . 2 . . . . . . . . . . . . . . . Recycling Units 10 | . 6 . . . . 1 . . . . . 3 . . . . Scanalyzers 4 | . . . . . . 4 . . . . . . . . . . Garrison Access 4 | . . . . . 1 3 . . . . . . . . . . Terminal Hacks 64 | . 2 . 5 1 2 . 8 9 . . . 1 9 . 25 2 Record 44 | . . . 4 . . . 6 8 . . . . 1 . 25 . Part Schematic 1 | . 1 . . . . . . . . . . . . . . . Prototype ID Bank 2 | . 1 . . . . . . . . . . . 1 . . . Open Door 10 | . . . . 1 . . 2 1 . . . 1 5 . . . Level Access Points 1 | . . . . . . . . . . . . . . . . 1 Alert Level 1 | . . . . . . . . . . . . . 1 . . . Locate Traps 3 | . . . . . 1 . . . . . . . 1 . . 1 Hauler Manifests 1 | . . . . . 1 . . . . . . . . . . . Derelict Proto ID Bank 1 | . . . 1 . . . . . . . . . . . . . Fabricator Hacks 1 | . . . . . . 1 . . . . . . . . . . Network Status 1 | . . . . . . 1 . . . . . . . . . . Repair Station Hacks 2 | . 2 . . . . . . . . . . . . . . . Scan Component 1 | . 1 . . . . . . . . . . . . . . . Repair 1 | . 1 . . . . . . . . . . . . . . . Recycling Unit Hacks 4 | . 2 . . . . . . . . . . 2 . . . . Retrieve Components 4 | . 2 . . . . . . . . . . 2 . . . . Scanalyzer 1 | . . . . . . 1 . . . . . . . . . . Insert Component 1 | . . . . . . 1 . . . . . . . . . . Garrison Access Hacks 2 | . . . . . 1 1 . . . . . . . . . . Unlock Access 1 | . . . . . 1 . . . . . . . . . . . Seal Access 1 | . . . . . . 1 . . . . . . . . . . Unauthorized Hacks 8 | . 2 . . . 1 . . . . . . . 2 . . 3 Terminals 6 | . . . . . 1 . . . . . . . 2 . . 3 Botnet 3 | . . . . . 1 . . . . . . . 2 . . . Sabotage 3 | . . . . . . . . . . . . . . . . 3 Fabricators . | . . . . . . . . . . . . . . . . . Repair Stations . | . . . . . . . . . . . . . . . . . Recycling Units 2 | . 2 . . . . . . . . . . . . . . . Tunnel 2 | . 2 . . . . . . . . . . . . . . . Scanalyzers . | . . . . . . . . . . . . . . . . . Garrison Access . | . . . . . . . . . . . . . . . . . Data Cores Recovered 2 | . 1 . . . . . . . . . . . . . . 1 Used . | . . . . . . . . . . . . . . . . . Hacking Detections 29 | . 7 . . . 5 5 . . . . . 2 7 1 . 2 Full Trace Events 3 | . . . . . 1 . . . . . . . 2 . . . Feedback Events . | . . . . . . . . . . . . . . . . . Feedback Blocked . | . . . . . . . . . . . . . . . . . Robot Schematics Acquired 4 | . . . . . . . . . 4 . . . . . . . Robots Built . | . . . . . . . . . . . . . . . . . Authchips . | . . . . . . . . . . . . . . . . . Time . | . . . . . . . . . . . . . . . . . Total Robot Build Rating . | . . . . . . . . . . . . . . . . . Part Schematics Acquired 15 | . 1 . . . . . . . 14 . . . . . . . Parts Built . | . . . . . . . . . . . . . . . . . Authchips . | . . . . . . . . . . . . . . . . . Time . | . . . . . . . . . . . . . . . . . Total Part Build Rating . | . . . . . . . . . . . . . . . . . Parts Repaired 1 | . 1 . . . . . . . . . . . . . . . Time 13 | . 13 . . . . . . . . . . . . . . . Parts Recycled . | . . . . . . . . . . . . . . . . . Recycled Matter . | . . . . . . . . . . . . . . . . . Retrieved Matter . | . . . . . . . . . . . . . . . . . Retrieved Components 18 | . 13 . . . . . . . . . . 5 . . . . Parts Scanalyzed 1 | . . . . . . 1 . . . . . . . . . . Part Schematics Acquired . | . . . . . . . . . . . . . . . . . Parts Damaged . | . . . . . . . . . . . . . . . . . Bothacking | -11 -10 -10 -10 -9 -8 -7 -7 -7 -7 -7 -6 -6 -6 -6 -6 -6 ------------ Run | Yrd Mat Min Exi Min Mat Fac Low Low Zio Dee Pro Fac Ext Cet Arc Hub Used RIF Installer . | . . . . . . . . . . . . . . . . . Robots Hacked 1 | . 1 . . . . . . . . . . . . . . . Non-combat 1 | . 1 . . . . . . . . . . . . . . . Combat . | . . . . . . . . . . . . . . . . . Robot Hacks Applied 1 | . 1 . . . . . . . . . . . . . . . find_recycling 1 | . 1 . . . . . . . . . . . . . . . Relay Couplers Released . | . . . . . . . . . . . . . . . . . Fabnet Peak Effective % . | . . . . . . . . . . . . . . . . . Robots Rewired 11 | . . . . . . . . . . . . . 11 . . . Allies Hacked . | . . . . . . . . . . . . . . . . . Hacks Repelled . | . . . . . . . . . . . . . . . . . Allies | -11 -10 -10 -10 -9 -8 -7 -7 -7 -7 -7 -6 -6 -6 -6 -6 -6 -------- Run | Yrd Mat Min Exi Min Mat Fac Low Low Zio Dee Pro Fac Ext Cet Arc Hub Total Allies 24 | . . . . . . . . . 2 . . . 17 5 . . Largest Group 12 | . . . . . . . . . 2 2 . . 12 12 5 . Highest-Rated Group 744 | . . . . . . . . . 192 192 . . 482 744 543 . Highest-Rated Ally 159 | . . . . . . . . . 96 96 . . 159 159 159 . Total Orders 3 | . . . . . . . . . . . . . . 3 . . STAY 2 | . . . . . . . . . . . . . . 2 . . FOLLOW 1 | . . . . . . . . . . . . . . 1 . . Ally Attacks 197 | . . . . . . . . . . 52 . . 72 55 18 . Total Damage 5279 | . . . . . . . . . . 1156 . . 1303 2217 603 . Kills 26 | . . . . . . . . . . 7 . . 10 6 3 . Allies Corrupted . | . . . . . . . . . . . . . . . . . Allies Melted . | . . . . . . . . . . . . . . . . . Intel | -11 -10 -10 -10 -9 -8 -7 -7 -7 -7 -7 -6 -6 -6 -6 -6 -6 ------- Run | Yrd Mat Min Exi Min Mat Fac Low Low Zio Dee Pro Fac Ext Cet Arc Hub Robot Analysis Total . | . . . . . . . . . . . . . . . . . Derelict Logs Recovered 7 | . . 2 . 1 . . . 1 2 . 1 . . . . . Drone Launches . | . . . . . . . . . . . . . . . . . Drone Recoveries . | . . . . . . . . . . . . . . . . . Exploration | -11 -10 -10 -10 -9 -8 -7 -7 -7 -7 -7 -6 -6 -6 -6 -6 -6 ------------- Run | Yrd Mat Min Exi Min Mat Fac Low Low Zio Dee Pro Fac Ext Cet Arc Hub Turns Passed 24935 | 288 3300 739 394 1153 2349 992 919 1080 2167 4185 1227 1381 2501 506 662 1092 Spaces Moved 11469 | 113 1292 299 278 685 1132 601 531 657 1266 2024 503 442 1018 195 83 350 Core 6 | 6 . . . . . . . . . . . . . . . . Treads 1678 | 107 1292 237 . 41 1 . . . . . . . . . . . Legs 3077 | . . . . . . . . . . 486 503 442 1018 195 83 350 Wheels 6708 | . . 62 278 644 1131 601 531 657 1266 1538 . . . . . . Hover . | . . . . . . . . . . . . . . . . . Flight . | . . . . . . . . . . . . . . . . . Fastest Speed 50 | 50 160 140 140 130 130 130 160 160 145 145 183 183 226 183 183 183 Average Speed 176 | 155 219 219 140 151 130 143 160 160 159 166 183 200 226 208 198 233 Slowest Speed 510 | 160 240 240 155 320 410 160 160 160 160 189 183 226 226 226 226 510 Overloaded Moves . | . . . . . . . . . . . . . . . . . Propulsion Burnouts . | . . . . . . . . . . . . . . . . . Robots Hopped . | . . . . . . . . . . . . . . . . . Cave-ins Triggered . | . . . . . . . . . . . . . . . . . Exploration Rate (%) 60 | 8 95 59 70 94 60 16 60 76 80 74 58 6 89 67 79 33 Regions Visited 16 Branch Regions 12 Pre-discovered Areas 7 | . 2 1 1 1 . . . 1 1 . . . . . . . Known Exits Taken 7 | . . . . 1 . 1 1 1 1 . 1 1 . . . . Unknown Exits Taken 9 | 1 1 1 1 . 1 . . . . 1 . . 1 1 1 . Scrap Searched 13 | . . 1 . 2 . . 3 3 3 . 1 . . . . . Spaces Dug 172 | . 6 . . 10 21 18 4 4 . 12 42 13 7 . . 35 Terrain Destroyed 410 | . 19 . . 17 23 19 4 4 . 26 72 24 23 4 1 174 Melee 46 | . . . . . 20 18 4 4 . . . . . . . . Projectile 198 | . 6 . . . 3 1 . . . 26 72 24 23 4 1 38 AOE 166 | . 13 . . 17 . . . . . . . . . . . 136 Terrain Rammed . | . . . . . . . . . . . . . . . . . Walls Destroyed . | . . . . . . . . . . . . . . . . . Machines Disabled . | . . . . . . . . . . . . . . . . . Actions | -11 -10 -10 -10 -9 -8 -7 -7 -7 -7 -7 -6 -6 -6 -6 -6 -6 --------- Run | Yrd Mat Min Exi Min Mat Fac Low Low Zio Dee Pro Fac Ext Cet Arc Hub Total 15144 | 166 1584 344 282 767 1804 686 568 674 1360 2770 700 889 1168 280 580 522 Wait 2264 | . 130 8 . 23 440 24 2 . 22 459 118 375 43 46 489 85 Move 11453 | 112 1291 298 277 684 1131 600 530 656 1265 2023 502 441 1017 194 82 350 Hop . | . . . . . . . . . . . . . . . . . Pick Up 176 | 6 27 4 1 10 29 11 6 2 8 49 2 4 6 9 . 2 Fast Attach 68 | 7 2 1 . 1 18 . . 1 9 22 1 3 . 1 . 2 Attach 39 | . 1 2 . . 4 2 1 . 1 14 . 5 . 2 1 6 Detach 41 | . . . . . 1 . . . 4 11 3 7 1 5 6 3 Swap 106 | 3 23 7 2 10 17 10 4 3 6 15 2 1 . 3 . . Drop 230 | . 18 5 2 17 53 7 4 3 17 77 2 9 5 9 . 2 Fire 564 | 38 87 19 . 19 68 13 15 . . 88 70 36 29 8 2 72 Melee 100 | . 3 . . . 41 19 6 9 1 12 . 6 . 3 . . Ram 2 | . . . . . 2 . . . . . . . . . . . Kick 2 | . . . . . . . . . . . . 2 . . . . Crush 5 | . 2 . . 3 . . . . . . . . . . . . Escape Stasis 10 | . . . . . . . . . . . . . 10 . . . Rewire 57 | . . . . . . . . . . . . . 57 . . . Trap . | . . . . . . . . . . . . . . . . . Miscellaneous 27 | . . . . . . . . . 27 . . . . . . . Route ------- -11/Scrapyard -10/Materials (discovered 4 exits: [*Mat x3] / [*Min]) -10/Mines -10/Exiles -9/Mines (discovered 2 exits: *Mat x2) -8/Materials (discovered 3 exits: *Fac x2 / Gar) -7/Factory (discovered 3 exits: *Fac / *Sto / *Low) -7/Lower Caves -7/Lower Caves (discovered 2 exits: *Fac / *Zio) -7/Zion (discovered 2 exits: *Dee / [*Pro]) -7/Deep Caves -6/Proximity Caves -6/Factory (discovered 3 exits: *Fac / Low / *Ext) -6/Extension (discovered 2 exits: *Fac / *Cet) -6/Cetus (discovered 2 exits: *Fac / *Arc) -6/Archives -6/Hub_04(d) (discovered 4 exits: Fac x4) History --------- Turn | Location | Event 22 | -11/Scrapyard | Discovered new exit (range 15) 289 | -11/Scrapyard | Entered Materials 309 | -10/Materials | Build established: Mutant 780 | -10/Materials | Discovered new exit (range 11) 955 | -10/Materials | Discovered new exit (range 10) 1096 | -10/Materials | Discovered new exit (range 12) 1530 | -10/Materials | Discovered new exit (range 15) 1774 | -10/Materials | Repaired Lgt. Treads 3589 | -10/Materials | Entered Mines 3758 | -10/Mines | Deemed a non-threat by the Exiles lab entrance 3760 | -10/Mines | Discovered new exit (range 5) 3940 | -10/Mines | Core integrity fell below 50% 4199 | -10/Mines | Learned Materials non-interactive machine intel 4240 | -10/Mines | Assembled infested the area 4328 | -10/Mines | Entered Exiles 4362 | -10/Exiles | Met 8R-AWN 4386 | -10/Exiles | Met EX-HEX 4449 | -10/Exiles | Met EX-DEC 4473 | -10/Exiles | Learned location of Zion (-7) 4510 | -10/Exiles | Met EX-BIN 4530 | -10/Exiles | Aligned with FarCom system 4531 | -10/Exiles | Given EX-Vault access code 4566 | -10/Exiles | Opened EX-Vault 4574 | -10/Exiles | Found AWS/Gauss 4605 | -10/Exiles | Warned to stay clear of 0b10 Research branches 4704 | -10/Exiles | Discovered new exit (range 12) 4722 | -10/Exiles | Left Exiles lab with AWS/Gauss 4722 | -10/Exiles | Entered Mines 5024 | -9/Mines | Discovered new exit (range 15) 5187 | -9/Mines | Found a damaged Exp. Sensor Array with a note attached 5193 | -9/Mines | Found Prototype Device 5215 | -9/Mines | Learned location of Storage (-7) 5433 | -9/Mines | Identified exit to Materials 5812 | -9/Mines | Met a Derelict shopkeep closing up shop 5875 | -9/Mines | Entered Materials 5875 | -8/Materials | Evolved 4 slots: Propulsion x1, Utility x2, Weapon x1 5876 | -8/Materials | Loaded intel: 46 non-interactive machine locations 5890 | -8/Materials | Garrison activated, responded to threat 6017 | -8/Materials | Identified exit to Garrison 6217 | -8/Materials | Garrison activated, responded to threat 6384 | -8/Materials | Build established: Scavenger-Tank 6771 | -8/Materials | Discovered new exit (range 8) 7327 | -8/Materials | Build established: Mutant 7673 | -8/Materials | Discovered new exit (range 11) 7939 | -8/Materials | Identified Exp. Sensor Array 8224 | -8/Materials | Entered Factory 8224 | -7/Factory | Evolved 2 slots: Utility x2 8293 | -7/Factory | Discovered new exit (range 6) 8301 | -7/Factory | Identified exit to Storage 8923 | -7/Factory | Discovered new exit (range 9) 8968 | -7/Factory | Identified exit to Lower Caves 9036 | -7/Factory | Discovered new exit (range 13) 9216 | -7/Factory | Entered Lower Caves 9664 | -7/Lower Caves | Learned Armory emergency access door positions 9664 | -7/Lower Caves | Learned Factory stockpile data 9664 | -7/Lower Caves | Learned Extension security intel 9664 | -7/Lower Caves | Learned Armory garrison access intel 9931 | -7/Lower Caves | Encountered a Warlord checkpoint 9933 | -7/Lower Caves | Discovered new exit (range 9) 9945 | -7/Lower Caves | Identified exit to Lower Caves 10135 | -7/Lower Caves | Entered another Lower Caves area 10448 | -7/Lower Caves | Discovered new exit (range 10) 10460 | -7/Lower Caves | Identified exit to Factory 11001 | -7/Lower Caves | Discovered new exit (range 10) 11040 | -7/Lower Caves | Identified exit to Zion 11083 | -7/Lower Caves | Learned Factory security intel 11157 | -7/Lower Caves | Learned location of Armory (-4) 11157 | -7/Lower Caves | Learned location of 1 exit from Factory 11157 | -7/Lower Caves | Learned Armory terminal intel 11215 | -7/Lower Caves | Entered Zion 11263 | -7/Zion | Given A8's code to call for help 11328 | -7/Zion | System corruption cleaned by Quarantine Array 11368 | -7/Zion | Learned Factory non-interactive machine intel 11373 | -7/Zion | Found Prototype Launcher 11373 | -7/Zion | Identified Rocket Array 11397 | -7/Zion | Discovered new exit (range 13) 11626 | -7/Zion | Given the Hacking Drone Bay 11993 | -7/Zion | Learned location of Data Miner (-6) 12213 | -7/Zion | Found Prototype Device 12213 | -7/Zion | Identified Phasing AFG 12284 | -7/Zion | Learned Factory interactive machine intel 12325 | -7/Zion | Identified exit to Deep Caves 12538 | -7/Zion | Found Prototype Device 12538 | -7/Zion | Identified Hacking Drone Bay 12895 | -7/Zion | Saw the warning signs outside the Deep Caves entrance 13203 | -7/Zion | Build established: Tank 13359 | -7/Zion | Enhanced Grunt warped into view, answering call for help 13366 | -7/Zion | Enhanced Grunt warped into view, answering call for help 13382 | -7/Zion | Entered Deep Caves 13382 | -7/Deep Caves | Accompanied by 2 allies 13521 | -7/Deep Caves | Attacked by Z-Imprinter 13534 | -7/Deep Caves | Destroyed Z-Imprinter 13554 | -7/Deep Caves | Found Prototype Protection 13554 | -7/Deep Caves | Identified Zio. Weapon Casing 13674 | -7/Deep Caves | Z-Facility disabled 13694 | -7/Deep Caves | Found Prototype Protection 13694 | -7/Deep Caves | Identified Zio. Heavy Carapace 14035 | -7/Deep Caves | Build established: Mutant 14197 | -7/Deep Caves | Found Zio. Weapon Casing 14249 | -7/Deep Caves | Found Zio. Weapon Casing 14284 | -7/Deep Caves | Found Zio. Heavy Carapace 14319 | -7/Deep Caves | Found Zio. Weapon Casing 14492 | -7/Deep Caves | Build established: Tank 14577 | -7/Deep Caves | Discovered new exit (range 6) 14857 | -7/Deep Caves | Spotted AG-30763 14896 | -7/Deep Caves | Destroyed AG-30763 15398 | -7/Deep Caves | Spotted AG-51256 15485 | -7/Deep Caves | Destroyed AG-51256 15565 | -7/Deep Caves | Found XL Autogun Array 15772 | -7/Deep Caves | Found Zio. Weapon Casing 16141 | -7/Deep Caves | Triggered Deep Caves wall 16141 | -7/Deep Caves | Spotted AS-08947 16141 | -7/Deep Caves | Spotted AS-17183 16142 | -7/Deep Caves | Destroyed AS-08947 16166 | -7/Deep Caves | Destroyed 34 combat bots 16166 | -7/Deep Caves | Destroyed AS-17183 16172 | -7/Deep Caves | Exposed GOLEM chamber 16200 | -7/Deep Caves | Lost 3 parts (3u) 16218 | -7/Deep Caves | Found GOLEM Unit 16224 | -7/Deep Caves | Found GOLEM Unit 16229 | -7/Deep Caves | Found GOLEM Unit 16247 | -7/Deep Caves | Found GOLEM Unit 16558 | -7/Deep Caves | Build established: Golem 16580 | -7/Deep Caves | Found Mobile Assembly Unit 16607 | -7/Deep Caves | Found GOLEM Unit 17567 | -7/Deep Caves | Entered Proximity Caves 17746 | -6/Proximity Caves | Spotter reported a threat 17775 | -6/Proximity Caves | Spotter reported a threat 17886 | -6/Proximity Caves | Spotter reported a threat 18021 | -6/Proximity Caves | Spotter reported a threat 18210 | -6/Proximity Caves | Spotter reported a threat 18390 | -6/Proximity Caves | Core integrity fell below 50% 18654 | -6/Proximity Caves | Learned Factory interactive machine intel 18743 | -6/Proximity Caves | Discovered exit to Factory (range 13) 18794 | -6/Proximity Caves | Entered Factory 18794 | -6/Factory | Evolved 2 slots: Power x1, Utility x1 18795 | -6/Factory | Identified exit to Lower Caves 18798 | -6/Factory | Loaded intel: 218 non-interactive machine locations 18799 | -6/Factory | Loaded intel: 51 interactive machine locations 19083 | -6/Factory | Discovered new exit (range 13) 19144 | -6/Factory | Search patrols dispatched 19427 | -6/Factory | Identified exit to Factory 19494 | -6/Factory | Search patrols dispatched 19980 | -6/Factory | Discovered new exit (range 5) 19984 | -6/Factory | Identified exit to Extension 20175 | -6/Factory | Entered Extension 21276 | -6/Extension | Rescued a captive Derelict 21418 | -6/Extension | Build established: Commander-Golem 21733 | -6/Extension | Destroyed B-75 Beast 21771 | -6/Extension | Destroyed B-75 Beast 22059 | -6/Extension | Rescued a captive Derelict 22067 | -6/Extension | Build established: Golem 22091 | -6/Extension | Rescued a captive Derelict 22218 | -6/Extension | Rescued a captive Derelict 22521 | -6/Extension | Rescued A7 22542 | -6/Extension | Rescued a captive Derelict 22561 | -6/Extension | Build established: Commander-Golem 22620 | -6/Extension | Discovered exit to Factory (range 10) 22623 | -6/Extension | Discovered new exit (range 6) 22676 | -6/Extension | Entered Cetus 22676 | -6/Cetus | Accompanied by 12 allies (A7) 22681 | -6/Cetus | Acquired a Cetus Manufacturing Module code from A7 22707 | -6/Cetus | Spotted Cetus Guard 22707 | -6/Cetus | Spotted Cetus Guard 22708 | -6/Cetus | Spotted Cetus Guard 22711 | -6/Cetus | Spotted Cetus Guard 22724 | -6/Cetus | Destroyed Cetus Guard 22726 | -6/Cetus | Allies destroyed Cetus Guard 22728 | -6/Cetus | Allies destroyed Cetus Guard 22730 | -6/Cetus | Destroyed Cetus Guard 22755 | -6/Cetus | Lost 7 allies 22932 | -6/Cetus | Started Cetus Manufacturing Module 22946 | -6/Cetus | Escorted A7 to Cetus Mainframe 22957 | -6/Cetus | Manufactured an Enhanced Grunt 22977 | -6/Cetus | Discovered new exit (range 15) 22982 | -6/Cetus | Manufactured an Enhanced Grunt 23007 | -6/Cetus | Manufactured an Enhanced Grunt 23032 | -6/Cetus | Manufactured an Enhanced Grunt 23057 | -6/Cetus | Manufactured an Enhanced Grunt 23069 | -6/Cetus | Spotted Cetus Guard 23069 | -6/Cetus | Spotted Cetus Guard 23075 | -6/Cetus | Spotted Cetus Guard 23077 | -6/Cetus | Spotted Cetus Guard 23084 | -6/Cetus | Allies destroyed Cetus Guard 23090 | -6/Cetus | Discovered exit to Factory (range 16) 23092 | -6/Cetus | Destroyed Cetus Guard 23094 | -6/Cetus | Allies destroyed Cetus Guard 23099 | -6/Cetus | Allies destroyed Cetus Guard 23111 | -6/Cetus | Met Revision 17 23182 | -6/Cetus | Entered Archives 23182 | -6/Archives | Accompanied by 5 allies (A7) 23187 | -6/Archives | Received a hacking code to weaken MAIN.C 23208 | -6/Archives | Met Zhirov 23214 | -6/Archives | Reinforcements dispatched to Archives 23218 | -6/Archives | Unable to access archive contents 23244 | -6/Archives | Discovered new exit (range 16) 23257 | -6/Archives | Read partially decrypted archive contents 23259 | -6/Archives | Reinforcements dispatched to Archives 23261 | -6/Archives | Zhirov warped through subspace 23279 | -6/Archives | Zhirov detonated Archives 23310 | -6/Archives | Lost 3 parts (2u1w) 23310 | -6/Archives | Lost 4 allies 23589 | -6/Archives | Build established: Golem 23844 | -6/Archives | Entered Hub_04(d) 24684 | -6/Hub_04(d) | Network Hub disabled 24693 | -6/Hub_04(d) | Spotted Lightning 24705 | -6/Hub_04(d) | Spotted Lightning 24707 | -6/Hub_04(d) | Spotted Lightning 24754 | -6/Hub_04(d) | System corruption reached 10% 24793 | -6/Hub_04(d) | Destroyed Lightning 24798 | -6/Hub_04(d) | Destroyed Lightning 24799 | -6/Hub_04(d) | Core integrity fell below 50% 24819 | -6/Hub_04(d) | Lost 7 parts (1n3u3w) 24856 | -6/Hub_04(d) | Destroyed Lightning 24894 | -6/Hub_04(d) | First assault squad dispatched 24898 | -6/Hub_04(d) | Lost 6 parts (1p2n2u1w) 24903 | -6/Hub_04(d) | Spotted Lightning 24905 | -6/Hub_04(d) | Spotted Lightning 24907 | -6/Hub_04(d) | Destroyed 10 combat bots 24910 | -6/Hub_04(d) | Core integrity fell below 20% 24914 | -6/Hub_04(d) | System corruption reached 30% 24936 | -6/Hub_04(d) | Destroyed by Lightning with EMDS Last Messages --------------- 24917_ U-05 Engineer lays Concrete. 24917_ Penetrated by EMDS Slug. 24918_ U-05 Engineer lays Concrete. 24920_ System corrupted: Component data lost. 24920_ U-05 Engineer lays Concrete. 24921_ The unstable cave ceiling collapses. 24921_ U-05 Engineer lays Concrete. 24923_ The unstable cave ceiling collapses. 24923_ Penetrated by EMDS Slug. 24924_ U-05 Engineer lays Concrete. 24924_ EMDS Slug penetrates Wall. 24925_ U-05 Engineer lays Concrete. 24927_ The unstable cave ceiling collapses. 24927_ 31 Matter crushed. 24929_ Penetrated by EMDS Slug. 24931_ The unstable cave ceiling collapses. 24931_ Penetrated by EMDS Slug. 24932_ U-05 Engineer builds a Wall. 24936_ System corrupted: Matter fused (-8). 24936_ Penetrated by EMDS Slug. Map ----- +----------------------------------------------------+ | ?????????????????????????????????????????????????? | | ?????????????????????????????????????????????????? | | ?????????????????????????????????????????????????? | | ????????????????????????????????????????????????? | | ????????????????????????????????????????????????# | | ????????????????????????????????????????????????# | | ????????????????????????????????????????????????# | | ????????????????????????????????????????????????# | | ????????????????????????????????????????????????# | | ????????????????????????????????????????????????# | | ????????????????????????????????????????????????# | | ????????????????????????????????????????????????# | | ????????????????????????????????????????????????# | | ?????????????????????????????????????????#??????# | | ???????????????????????????????C ???????? ??????# | | ???????????????????????????????? ?????# " # | | ?????????????????????????i?h???? ?????"" # | | ???????????????????????????????o ?????"" [[ " + | | ?????????????????????#??????????? ?????"T [[ # | | ?????????????????????# ?????????? ?????"" [[ # | | ????????????????? ??# ????????? ?????"" | | ?????????????????? ? ???????? ???? | | ???????????????????< /? ??????? ?#####+####### | | ?????????????????????# !? ?????? # # # # | | ????????????????????####+########### = # | | ??????????????????? # [=@ ""T""" # % # | | ?????????????????# + "" hh %#= # | | ????????????????????# % + | | ????????????????????# "" # ! # | | ????????????????????# # | | ????????????????????#####;;###### # # | | ????????????????????????####????# | | ????????????????????????????????# # # # ## | | ????????????????????????????????## ## # # | | ?????????????????????????????????## # #% # # | | ???????????????????????????????????# # % ##### | | ????????????????????????????########## # ### | | ????????????????????????????# """T""" ??# | | ????????????????????????????# #### | | ????????????????????????????# """" # | | ????????????????????????????# """" + | | ????????????????????????????# = """" # | | ????????????????????????????# """" #####+###### | | ????????????????????????????# ## # | | ????????????????????????????# ## " " " | | ????????????????????????????############ " " !# | | ???????????????????????????????????????# " " # | | ???????????????????????????????????????# =# | | ???????????????????????????????????????# " " # | | ???????????????????????????????????????# " " # | +----------------------------------------------------+ Best States ------------- Heat Dissipation 78 Coolant Potential 65 Energy Generation 45 Energy Capacity 1350 Matter Stores 300 Matter Capacity 300 Sight Range 16 Robot Scan Range 20 Terrain Scan Density 10 Armor Coverage 1425 Resistance: KI 15 Resistance: TH 20 Resistance: EX 15 Resistance: EM 15 Resistance: I 15 Resistance: S 15 Resistance: P 15 Weapon Shielding 100 Evasion (%) 40 Targeting Accuracy 20 Recoil Reduction 2 Energy Filtering 30 Particle Charging 25 Item Schematics ----------------- Huge Storage Unit | -10/Materials | Hacked Imp. Shield Generator | -7/Zion | Archive Lgt. Fission Core | -7/Zion | Archive Hrd. Heavy Armor Plating | -7/Zion | Archive Imp. Actuator Array | -7/Zion | Archive Mak. Flight Unit | -7/Zion | Archive Mak. Transmission Jammer | -7/Zion | Archive Gatling Laser | -7/Zion | Archive Hvy. Shock Bomb Launcher | -7/Zion | Archive Adv. Cooling System | -7/Zion | Archive Focal Shield | -7/Zion | Archive Enh. Optical Array | -7/Zion | Archive Mak. Salvage Targeting Computer | -7/Zion | Archive Imp. Medium Armor Plating | -7/Zion | Archive 0b10 Decoder Chip [Looter] | -7/Zion | Archive Robot Schematics ------------------ L-41 Fighter | -7/Zion | Archive H-77 Assassin | -7/Zion | Archive K-01 Serf | -7/Zion | Archive G-47 Trooper | -7/Zion | Archive Fabricated ------------ Nothing Alien Tech Used ----------------- None Achievements -------------- None Challenges ------------ None Game ------ Seed MissileFlightTube Manual? 0 Play Time 03:42:26 Cumulative 127.4 hours Start 2024.04.22 @ 23:07:12 End 2024.04.23 @ 03:31:07 Sessions 1 Manual Loads 0 Difficulty Rogue Special Mode None Game No. 70 Rogue 70 Adventurer 0 Explorer 0 Win Type - Total 4 Types 3/0/0/1/0/0/0/0/0 Lore% 57 Gallery% 77 Achievement% 52 Wizard Run 0 Options --------- Layout 2 ASCII 0 Keyboard 1 Movement Numpad Keybinds 0 Fullscreen 2 Font 32/Tamsyn Map View 50x44 Zoom Use 0% Tactical HUD 1 Map Filters NONE Filters NONE Steam 1 RUN: 7cae24ea-0185-48ab-a0f7-8bb474c46c97